bitfinex/quotes_BTCUSD_20240921
["timestamp","ask_amount","ask_price","bid_price","bid_amount"]
[1726944683501,0.34968668,63321.0,63320.0,0.0286005]
[1726944686399,0.27870872,63321.0,63320.0,0.0286005]
[1726944687217,0.34981824,63321.0,63320.0,0.0286005]
[1726944687631,0.27870872,63321.0,63320.0,0.0286005]
[1726944688726,0.34981848,63321.0,63320.0,0.0286005]
[1726944689150,0.27870872,63321.0,63320.0,0.0286005]
[1726944690694,0.34981889,63321.0,63320.0,0.0286005]
[1726944690916,0.27870872,63321.0,63320.0,0.0286005]
[1726944692117,0.34981823,63321.0,63320.0,0.0286005]
[1726944693173,0.27870872,63321.0,63320.0,0.0286005]
[1726944693602,0.34981666,63321.0,63320.0,0.0286005]
[1726944693812,0.34981854,63321.0,63320.0,0.0286005]
[1726944694041,0.76336854,63321.0,63320.0,0.0286005]
[1726944694510,0.76336864,63321.0,63320.0,0.0286005]
[1726944694737,1.58182297,63321.0,63320.0,0.0286005]
[1726944694976,1.48701239,63321.0,63320.0,0.0286005]
[1726944696080,1.48701239,63321.0,63320.0,0.0216005]
[1726944696299,1.48701239,63321.0,63320.0,0.0146005]
[1726944696520,1.48701239,63321.0,63320.0,0.0156005]
[1726944697184,1.48701239,63321.0,63320.0,0.0146005]
[1726944697432,1.48801239,63321.0,63320.0,0.0146005]
[1726944697853,1.48701239,63321.0,63320.0,0.0146005]
[1726944698283,1.48801239,63321.0,63320.0,0.0146005]
[1726944699654,1.48701239,63321.0,63320.0,0.0146005]
[1726944699881,1.48801239,63321.0,63320.0,0.0146005]
[1726944700345,1.48701239,63321.0,63320.0,0.0146005]
[1726944700799,1.48801239,63321.0,63320.0,0.0146005]
[1726944704549,1.60637809,63321.0,63320.0,0.0146005]
[1726944704984,1.60638076,63321.0,63320.0,0.0146005]
[1726944705210,1.48801239,63321.0,63320.0,0.0146005]
[1726944705643,1.60636758,63321.0,63320.0,0.0146005]
[1726944706104,1.48801239,63321.0,63320.0,0.0146005]
[1726944706546,1.60636959,63321.0,63320.0,0.0146005]
[1726944707656,1.48801239,63321.0,63320.0,0.0146005]
[1726944714288,1.36722867,63321.0,63320.0,0.0146005]
[1726944714518,1.48801239,63321.0,63320.0,0.0146005]
[1726944715262,1.36722867,63321.0,63320.0,0.0146005]
[1726944715482,1.48801239,63321.0,63320.0,0.0146005]
[1726944724370,1.36722867,63321.0,63320.0,0.0146005]
[1726944724805,1.48801239,63321.0,63320.0,0.0146005]
[1726944730535,1.26952867,63321.0,63320.0,0.0146005]
[1726944730749,1.50862395,63321.0,63320.0,0.0146005]
[1726944731423,1.39031239,63321.0,63320.0,0.0146005]
[1726944740698,1.38931239,63321.0,63320.0,0.0146005]
[1726944740919,1.39031239,63321.0,63320.0,0.0146005]
[1726944741500,1.38931239,63321.0,63320.0,0.0146005]
[1726944741884,1.39031239,63321.0,63320.0,0.0146005]
[1726944748642,1.41506142,63321.0,63320.0,0.0146005]
[1726944748892,1.83923686,63321.0,63320.0,0.0146005]
[1726944752951,1.71845314,63321.0,63320.0,0.0146005]
[1726944753183,1.51236142,63321.0,63320.0,0.0146005]
[1726944753408,1.53374091,63321.0,63320.0,0.0146005]
[1726944753633,1.51236142,63321.0,63320.0,0.0146005]
[1726944756682,1.65452463,63321.0,63320.0,0.0146005]
[1726944757766,1.51236142,63321.0,63320.0,0.0146005]
[1726944757978,1.65452928,63321.0,63320.0,0.0146005]
[1726944761322,1.75452928,63321.0,63320.0,0.0146005]
[1726944761550,1.93997655,63321.0,63320.0,0.0146005]
[1726944767913,1.93977741,63321.0,63320.0,0.0146005]
[1726944768334,1.93877741,63321.0,63320.0,0.0146005]
[1726944768540,1.94077741,63321.0,63320.0,0.0166005]
[1726944769217,1.93877741,63321.0,63320.0,0.0156005]
[1726944769442,1.94077741,63321.0,63320.0,0.0166005]
[1726944769670,1.94077741,63321.0,63320.0,0.0156005]
[1726944769890,1.93877741,63321.0,63320.0,0.0146005]
[1726944770102,1.93977741,63321.0,63320.0,0.0156005]
[1726944770311,1.94177741,63321.0,63320.0,0.0156005]
[1726944770530,1.94377741,63321.0,63320.0,0.0166005]
[1726944771620,1.94077741,63321.0,63320.0,0.0156005]
[1726944771829,1.94277741,63321.0,63320.0,0.0166005]
[1726944772960,1.94288574,63321.0,63320.0,0.0166005]
[1726944774736,1.94088574,63321.0,63320.0,0.0156005]
[1726944774975,1.94288574,63321.0,63320.0,0.0166005]
[1726944775412,1.94088574,63321.0,63320.0,0.0156005]
[1726944776077,1.94188574,63321.0,63320.0,0.0166005]
[1726944776545,1.94317039,63321.0,63320.0,0.0166005]
[1726944778424,2.10309837,63321.0,63320.0,0.0166005]
[1726944778892,1.94317039,63321.0,63320.0,0.0166005]
[1726944779114,2.10309837,63321.0,63320.0,0.0166005]
[1726944779372,1.94317039,63321.0,63320.0,0.0166005]
[1726944781879,1.61436142,63321.0,63320.0,0.0166005]
[1726944782123,1.94296467,63321.0,63320.0,0.0166005]
[1726944784256,1.96596467,63321.0,63320.0,0.0166005]
[1726944786976,1.96610419,63321.0,63320.0,0.0166005]
[1726944804535,1.96410419,63321.0,63320.0,0.0156005]
[1726944804780,2.1010109,63321.0,63320.0,0.0156005]
[1726944805015,2.1010109,63321.0,63320.0,0.0146005]
[1726944805016,1.84280419,63321.0,63320.0,0.0146005]
[1726944805265,1.84280419,63321.0,63320.0,0.0156005]
[1726944805266,1.84380419,63321.0,63320.0,0.0156005]
[1726944805987,1.84580419,63321.0,63320.0,0.0166005]
[1726944806428,1.52795419,63321.0,63320.0,0.0156005]
[1726944806614,1.52995419,63321.0,63320.0,0.0166005]
[1726944807093,1.67214198,63321.0,63320.0,0.0166005]
[1726944807323,1.34339916,63321.0,63320.0,0.0166005]
[1726944807567,1.34039916,63321.0,63320.0,0.0146005]
[1726944807795,1.34039916,63321.0,63320.0,0.0156005]
[1726944808009,1.34139916,63321.0,63320.0,0.0156005]
[1726944808463,1.19921142,63321.0,63320.0,0.0156005]
[1726944808918,1.20121142,63321.0,63320.0,0.0156005]
[1726944809834,1.34339916,63321.0,63320.0,0.0156005]
[1726944810498,1.20121142,63321.0,63320.0,0.0156005]
[1726944810742,1.34339916,63321.0,63320.0,0.0156005]
[1726944811429,1.20121142,63321.0,63320.0,0.0156005]
[1726944820446,1.51706142,63321.0,63320.0,0.0156005]
[1726944820861,1.65918769,63321.0,63320.0,0.0156005]
[1726944822278,1.51706142,63321.0,63320.0,0.0156005]
[1726944822697,1.65917439,63321.0,63320.0,0.0156005]
[1726944824104,1.51706142,63321.0,63320.0,0.0156005]
[1726944824264,1.65917439,63321.0,63320.0,0.0156005]
[1726944824873,1.51706142,63321.0,63320.0,0.0156005]
[1726944825310,1.65917439,63321.0,63320.0,0.0156005]
[1726944832350,1.51706142,63321.0,63320.0,0.0156005]
[1726944832560,1.65918618,63321.0,63320.0,0.0156005]
[1726944836181,1.34333618,63321.0,63320.0,0.0156005]
[1726944836671,1.3433474,63321.0,63320.0,0.0156005]
[1726944837571,1.34335143,63321.0,63320.0,0.0156005]
[1726944838008,1.65920143,63321.0,63320.0,0.0156005]
[1726944838221,1.34335143,63321.0,63320.0,0.0156005]
[1726944838449,1.22256771,63321.0,63320.0,0.0156005]
[1726944838670,1.34335143,63321.0,63320.0,0.0156005]
[1726944838889,1.20121142,63321.0,63320.0,0.0156005]
[1726944841565,1.34336042,63321.0,63320.0,0.0156005]
[1726944841986,1.20121142,63321.0,63320.0,0.0156005]
[1726944842218,1.34336042,63321.0,63320.0,0.0156005]
[1726944844979,1.20121142,63321.0,63320.0,0.0156005]
[1726944845189,1.34336042,63321.0,63320.0,0.0156005]
[1726944846337,1.34338904,63321.0,63320.0,0.0156005]
[1726944848905,1.53442454,63321.0,63320.0,0.0156005]
[1726944851341,1.53447091,63321.0,63320.0,0.0156005]
[1726944853059,1.85032091,63321.0,63320.0,0.0156005]
[1726944853497,1.53447091,63321.0,63320.0,0.0156005]
[1726944856271,1.53451578,63321.0,63320.0,0.0156005]
[1726944858614,1.85036578,63321.0,63320.0,0.0156005]
[1726944858851,1.53451578,63321.0,63320.0,0.0156005]
[1726944861494,1.85036578,63321.0,63320.0,0.0156005]
[1726944861732,1.53451578,63321.0,63320.0,0.0156005]
[1726944861951,1.85036578,63321.0,63320.0,0.0156005]
[1726944864814,1.84836578,63321.0,63320.0,0.0156005]
[1726944865017,1.84936578,63321.0,63320.0,0.0146005]
[1726944865454,1.84836578,63321.0,63320.0,0.0146005]
[1726944866487,1.85036578,63321.0,63320.0,0.0146005]
[1726944868353,1.53451578,63321.0,63320.0,0.0146005]
[1726944870999,1.85036578,63321.0,63320.0,0.0146005]
[1726944871177,1.53451578,63321.0,63320.0,0.0146005]
[1726944871387,1.85036578,63321.0,63320.0,0.0146005]
[1726944873094,1.53451578,63321.0,63320.0,0.0146005]
[1726944875524,1.85036578,63321.0,63320.0,0.0146005]
[1726944875960,1.53451578,63321.0,63320.0,0.0146005]
[1726944876897,0.48183711,63321.0,63320.0,0.1080005]
[1726944877112,0.14853275,63321.0,63320.0,0.28508443]
[1726944877540,0.14853275,63321.0,63320.0,0.30649926]
[1726944877541,0.26702741,63321.0,63320.0,0.30649926]
[1726944878200,0.24230352,63321.0,63320.0,0.30649926]
[1726944878643,0.24330352,63321.0,63320.0,0.30649926]
[1726944878860,0.24130352,63321.0,63320.0,0.30649926]
[1726944879066,0.24130352,63321.0,63320.0,0.30645646]
[1726944879254,0.14653275,63321.0,63320.0,0.30645646]
[1726944879709,0.14653275,63321.0,63320.0,0.3064617]
[1726944880142,0.21958821,63321.0,63320.0,0.3064617]
[1726944880579,0.21858821,63321.0,63320.0,0.3064617]
[1726944880798,0.21658821,63321.0,63320.0,0.3064617]
[1726944881009,0.21658821,63321.0,63320.0,0.3104617]
[1726944881433,0.21658821,63321.0,63320.0,0.13341533]
[1726944881617,0.21658821,63321.0,63320.0,0.15252593]
[1726944881618,0.21657948,63321.0,63320.0,0.15252593]
[1726944881865,0.2165795,63321.0,63320.0,0.13241533]
[1726944882087,0.14553275,63321.0,63320.0,0.13541533]
[1726944882561,0.14553275,63321.0,63320.0,0.29334233]
[1726944882786,0.21657469,63321.0,63320.0,0.13541533]
[1726944883232,0.21657469,63321.0,63320.0,0.12164083]
[1726944883451,0.21657469,63321.0,63320.0,0.13541125]
[1726944884110,0.14553275,63321.0,63320.0,0.13541125]
[1726944885670,0.21657469,63321.0,63320.0,0.13541125]
[1726944886336,0.14553275,63321.0,63320.0,0.13541125]
[1726944888605,0.19287557,63321.0,63320.0,0.13541125]
[1726944888818,0.14553275,63321.0,63320.0,0.13541125]
[1726944889916,0.19287393,63321.0,63320.0,0.13541125]
[1726944891696,0.1928701,63321.0,63320.0,0.13541125]
[1726944896647,0.19286466,63321.0,63320.0,0.13541125]
[1726944897344,0.14553275,63321.0,63320.0,0.13541125]
[1726944897707,0.19286462,63321.0,63320.0,0.13541125]
[1726944899389,0.14553275,63321.0,63320.0,0.29333825]
[1726944899811,0.19286462,63321.0,63320.0,0.29333825]
[1726944900446,0.14553275,63321.0,63320.0,0.29333825]
[1726944900868,0.19286462,63321.0,63320.0,0.29333825]
[1726944901305,0.14553275,63321.0,63320.0,0.19993825]
[1726944901741,0.1928638,63321.0,63320.0,0.19993825]
[1726944901942,0.14553275,63321.0,63320.0,0.19993825]
[1726944902392,0.1928638,63321.0,63320.0,0.19993825]
[1726944902814,0.14553275,63321.0,63320.0,0.19993825]
[1726944903033,0.1928638,63321.0,63320.0,0.19993825]
[1726944903244,0.14553275,63321.0,63320.0,0.19993825]
[1726944903508,0.04733105,63323.0,63322.0,0.157922]
[1726944903748,0.04733105,63324.0,63323.0,0.15792]
[1726944903950,0.12078372,63325.0,63324.0,0.157918]
[1726944904373,0.12078372,63325.0,63324.0,0.16555073]
[1726944905257,0.12178372,63325.0,63324.0,0.16555073]
[1726944905667,0.12178372,63325.0,63324.0,0.157918]
[1726944906107,0.12178372,63325.0,63324.0,0.17167255]
[1726944906968,0.12078372,63325.0,63324.0,0.17930528]
[1726944907306,0.12078372,63325.0,63324.0,0.18230528]
[1726944908440,0.02078372,63325.0,63324.0,0.18630528]
[1726944908893,0.02078372,63325.0,63324.0,0.18330528]
[1726944909361,0.02078372,63325.0,63324.0,0.18730528]
[1726944916901,0.12078372,63328.0,63327.0,0.15791]
[1726944917130,0.12078372,63328.0,63324.0,0.02938728]
[1726944917131,0.12078372,63328.0,63325.0,0.157913]
[1726944917370,0.12078372,63326.0,63325.0,0.157913]
[1726944918493,0.12078372,63326.0,63325.0,0.158913]
[1726944918714,0.12078372,63326.0,63325.0,0.157913]
[1726944918938,0.12078372,63326.0,63325.0,0.160913]
[1726944919447,0.12078372,63326.0,63325.0,0.163913]
[1726944920955,0.12078372,63326.0,63325.0,0.17766256]
[1726944921891,0.12078372,63326.0,63325.0,0.18529081]
[1726944925043,0.04730559,63329.0,63327.0,0.157909]
[1726944925262,0.12078372,63328.0,63327.0,0.157909]
[1726944926202,0.12078372,63328.0,63327.0,0.17164859]
[1726944927103,0.12078372,63328.0,63327.0,0.17264859]
[1726944927968,0.12078372,63328.0,63327.0,0.17364859]
[1726944932119,0.12078372,63328.0,63327.0,0.20431182]
[1726944932536,0.12078372,63328.0,63327.0,0.17164859]
[1726944932741,0.12078372,63328.0,63327.0,0.17464859]
[1726944933098,0.12078372,63328.0,63327.0,0.17764859]
[1726944933567,0.12078372,63328.0,63327.0,0.20834084]
[1726944934440,0.12078372,63328.0,63327.0,0.20833785]
[1726944937002,0.12078372,63328.0,63327.0,0.21596171]
[1726944938564,0.12078372,63328.0,63327.0,0.18527245]
[1726944938997,0.12078372,63328.0,63327.0,0.21595789]
[1726944939207,0.12078372,63328.0,63327.0,0.18527245]
[1726944939417,0.12078372,63328.0,63327.0,0.21595908]
[1726944941612,0.12078372,63328.0,63327.0,0.18527245]
[1726944941830,0.12078372,63328.0,63327.0,0.21595895]
[1726944943170,0.12078372,63328.0,63327.0,0.18527245]
[1726944943385,0.12243572,63328.0,63327.0,0.18527245]
[1726944943601,0.12243572,63328.0,63327.0,0.21596112]
[1726944944010,0.12243572,63328.0,63327.0,0.18527245]
[1726944944218,0.12243572,63328.0,63327.0,0.21596426]
[1726944944437,0.12243572,63328.0,63327.0,0.05805526]
[1726944944438,0.16976232,63328.0,63327.0,0.05805526]
[1726944944658,0.16976232,63328.0,63327.0,0.02736345]
[1726944944869,0.12243572,63328.0,63327.0,0.02736345]
[1726944945094,0.12243572,63328.0,63327.0,0.006]
[1726944945340,0.19342562,63328.0,63327.0,0.006]
[1726944946009,0.44453362,63328.0,63327.0,0.006]
[1726944946229,0.28662562,63328.0,63327.0,0.006]
[1726944948212,0.21563572,63328.0,63327.0,0.006]
[1726944949154,0.31028893,63328.0,63327.0,0.006]
[1726944950441,0.46819693,63328.0,63327.0,0.006]
[1726944951309,1.2628826,63328.0,63327.0,0.006]
[1726944951521,1.16822939,63328.0,63327.0,0.006]
[1726944952237,0.473739,63326.0,63325.0,0.000826]
[1726944952450,0.84866212,63326.0,63325.0,0.000826]
[1726944952660,1.04601867,63326.0,63325.0,0.000826]
[1726944952875,1.16448812,63326.0,63325.0,0.000826]
[1726944953310,1.04601867,63326.0,63325.0,0.000826]
[1726944954408,1.14078081,63326.0,63325.0,0.000826]
[1726944954876,1.04601867,63326.0,63325.0,0.000826]
[1726944955085,1.04701867,63326.0,63325.0,0.02221001]
[1726944955933,1.14178081,63326.0,63325.0,0.02221001]
[1726944956600,1.14177333,63326.0,63325.0,0.02221001]
[1726944957060,1.04701867,63326.0,63325.0,0.02221001]
[1726944957269,1.14176922,63326.0,63325.0,0.02221001]
[1726944957898,0.82594186,63326.0,63325.0,0.02221001]
[1726944958102,0.73119267,63326.0,63325.0,0.02221001]
[1726944959515,0.82593843,63326.0,63325.0,0.02221001]
[1726944961205,0.82593843,63326.0,63325.0,0.04133859]
[1726944961413,0.82593843,63326.0,63325.0,0.02221001]
[1726944961523,0.82593843,63326.0,63325.0,0.04133804]
[1726944961735,0.73119267,63326.0,63325.0,0.04133804]
[1726944961934,0.73119267,63326.0,63325.0,0.02221001]
[1726944962533,0.25745367,63326.0,63325.0,0.02221001]
[1726944962739,0.41536667,63326.0,63325.0,0.02221001]
[1726944965963,1.04701867,63326.0,63325.0,0.02221001]
[1726944966426,1.04701867,63326.0,63325.0,0.000826]
[1726944966626,0.73119267,63326.0,63325.0,0.000826]
[1726944967170,1.04701867,63326.0,63325.0,0.000826]
[1726944967342,0.73119267,63326.0,63325.0,0.000826]
[1726944967550,0.73119267,63326.0,63325.0,0.02221281]
[1726944968632,0.73284467,63326.0,63325.0,0.000826]
[1726944970811,0.82755777,63326.0,63325.0,0.000826]
[1726944971226,1.14338377,63326.0,63325.0,0.000826]
[1726944972694,1.1433748,63326.0,63325.0,0.000826]
[1726944980117,1.14336933,63326.0,63325.0,0.000826]
[1726944980604,1.04867067,63326.0,63325.0,0.000826]
[1726944981089,1.14337112,63326.0,63325.0,0.000826]
[1726944981824,1.36449667,63326.0,63325.0,0.000826]
[1726944988518,1.07362204,63326.0,63325.0,0.000826]
[1726944988742,0.63944467,63326.0,63325.0,0.000826]
[1726944988948,1.07605439,63326.0,63325.0,0.000826]
[1726944989931,1.07605439,63326.0,63325.0,0.02490935]
[1726944990632,0.76022839,63326.0,63325.0,0.02490935]
[1726944991351,0.85490449,63326.0,63325.0,0.02490935]
[1726944991832,0.38116549,63326.0,63325.0,0.02490935]
[1726944992048,0.33383508,63326.0,63325.0,0.02490935]
[1726944992691,0.3328356,63326.0,63325.0,0.02490935]
[1726944992920,0.4907486,63326.0,63325.0,0.02490935]
[1726944993401,0.4907486,63326.0,63325.0,0.02590935]
[1726944993867,0.4917486,63326.0,63325.0,0.02590935]
[1726944994557,0.4907486,63326.0,63325.0,0.02590935]
[1726944994787,0.4907486,63326.0,63325.0,0.02690935]
[1726944995268,0.44340239,63326.0,63325.0,0.02690935]
[1726944996929,0.51442171,63326.0,63325.0,0.02690935]
[1726944997410,0.28548939,63326.0,63325.0,0.02690935]
[1726944997652,0.49075843,63326.0,63325.0,0.02690935]
[1726944998601,0.44340239,63326.0,63325.0,0.02690935]
[1726945002586,0.49075493,63326.0,63325.0,0.02690935]
[1726945003965,0.44340239,63326.0,63325.0,0.02690935]
[1726945004697,0.49075401,63326.0,63325.0,0.02690935]
[1726945005615,0.49075345,63326.0,63325.0,0.02690935]
[1726945006089,0.44340239,63326.0,63325.0,0.02690935]
[1726945006307,0.4907535,63326.0,63325.0,0.02690935]
[1726945007464,0.44340239,63326.0,63325.0,0.02690935]
[1726945007941,0.33284072,63326.0,63325.0,0.02690935]
[1726945008610,0.16978705,63326.0,63325.0,0.02690935]
[1726945009566,0.32770005,63326.0,63325.0,0.02690935]
[1726945009815,0.28034872,63326.0,63325.0,0.02690935]
[1726945010297,0.32770005,63326.0,63325.0,0.02690935]
[1726945010525,0.28034872,63326.0,63325.0,0.02690935]
[1726945010971,0.32770005,63326.0,63325.0,0.02690935]
[1726945011652,0.28034872,63326.0,63325.0,0.02690935]
[1726945012101,0.32770005,63326.0,63325.0,0.002826]
[1726945012764,0.28034872,63326.0,63325.0,0.002826]
[1726945012986,0.32770005,63326.0,63325.0,0.002826]
[1726945013219,0.28034872,63326.0,63325.0,0.002826]
[1726945018583,0.32769249,63326.0,63325.0,0.002826]
[1726945021606,0.32769139,63326.0,63325.0,0.002826]
[1726945022378,0.32769139,63326.0,63325.0,0.02190066]
[1726945022993,0.32769125,63326.0,63325.0,0.02190066]
[1726945026663,0.32769187,63326.0,63325.0,0.02190066]
[1726945028382,0.28034872,63326.0,63325.0,0.02190066]
[1726945028581,0.32769659,63326.0,63325.0,0.02190066]
[1726945028815,0.32769659,63326.0,63325.0,0.002826]
[1726945029049,0.28034872,63326.0,63325.0,0.02187537]
[1726945029286,0.32769662,63326.0,63325.0,0.02187537]
[1726945029499,0.28034872,63326.0,63325.0,0.02187537]
[1726945029915,0.59617472,63326.0,63325.0,0.02187537]
[1726945030132,0.59617472,63326.0,63325.0,0.002826]
[1726945030399,0.66718945,63326.0,63325.0,0.02186942]
[1726945030618,0.35136345,63326.0,63325.0,0.02186942]
[1726945031817,0.3514004,63326.0,63325.0,0.02186942]
[1726945032043,0.6672264,63326.0,63325.0,0.02186942]
[1726945032487,0.59617472,63326.0,63325.0,0.02186942]
[1726945033393,0.69091029,63326.0,63325.0,0.02186942]
[1726945035412,0.59617472,63326.0,63325.0,0.02186942]
[1726945037519,0.71467918,63326.0,63325.0,0.02186942]
[1726945038874,0.71467918,63326.0,63325.0,0.002826]
[1726945039097,0.71467918,63326.0,63325.0,0.0218974]
[1726945040408,0.39885318,63326.0,63325.0,0.0218974]
[1726945041142,1.12780518,63326.0,63325.0,0.0218974]
[1726945041387,0.69347472,63326.0,63325.0,0.002826]
[1726945041607,0.69347472,63326.0,63325.0,0.02189666]
[1726945041833,0.69347472,63326.0,63325.0,0.002826]
[1726945042508,1.00930072,63326.0,63325.0,0.001826]
[1726945042723,0.69347472,63326.0,63325.0,0.000826]
[1726945042945,0.69347472,63326.0,63325.0,0.02510962]
[1726945043609,0.69347472,63326.0,63325.0,0.000826]
[1726945043833,1.48818039,63326.0,63325.0,0.02510962]
[1726945044052,1.17235439,63326.0,63325.0,0.02510962]
[1726945044267,1.17235439,63326.0,63325.0,0.000826]
[1726945045160,1.17335439,63326.0,63325.0,0.000826]
[1726945045908,1.17235439,63326.0,63325.0,0.000826]
[1726945046123,1.17335439,63326.0,63325.0,0.000826]
[1726945046565,1.48918039,63326.0,63325.0,0.001826]
[1726945046782,1.17335439,63326.0,63325.0,0.001826]
[1726945048444,1.48918039,63326.0,63325.0,0.001826]
[1726945048657,1.17335439,63326.0,63325.0,0.001826]
[1726945049274,1.05257067,63326.0,63325.0,0.001826]
[1726945049509,1.17335439,63326.0,63325.0,0.001826]
[1726945052556,1.17235439,63326.0,63325.0,0.001826]
[1726945052760,1.17235439,63326.0,63325.0,0.000826]
[1726945052761,1.17335439,63326.0,63325.0,0.000826]
[1726945052959,1.05257067,63326.0,63325.0,0.000826]
[1726945053411,1.17335439,63326.0,63325.0,0.000826]
[1726945054727,1.17235439,63326.0,63325.0,0.000826]
[1726945055177,1.26709483,63326.0,63325.0,0.000826]
[1726945055593,1.26809483,63326.0,63325.0,0.000826]
[1726945055801,1.26809474,63326.0,63325.0,0.000826]
[1726945056019,1.17335439,63326.0,63325.0,0.000826]
[1726945056907,1.29178686,63326.0,63325.0,0.000826]
[1726945057107,1.17335439,63326.0,63325.0,0.000826]
[1726945072107,0.85752839,63326.0,63325.0,0.000826]
[1726945072964,0.85752839,63326.0,63325.0,0.02032038]
[1726945073182,1.17335439,63326.0,63325.0,0.00657082]
[1726945073399,1.17335439,63326.0,63325.0,0.000826]
[1726945074732,0.85752839,63326.0,63325.0,0.000826]
[1726945075396,1.17335439,63326.0,63325.0,0.000826]
[1726945076054,0.85752839,63326.0,63325.0,0.000826]
[1726945077018,1.17335439,63326.0,63325.0,0.000826]
[1726945078448,0.85752839,63326.0,63325.0,0.000826]
[1726945078883,0.85752839,63326.0,63325.0,0.02032038]
[1726945080666,0.76022839,63326.0,63325.0,0.02032038]
[1726945084062,0.75922839,63326.0,63325.0,0.02032038]
[1726945084292,0.76022839,63326.0,63325.0,0.02032038]
[1726945084744,0.75922839,63326.0,63325.0,0.02032038]
[1726945084956,0.76022839,63326.0,63325.0,0.02032038]
[1726945085161,0.76022839,63326.0,63325.0,0.02132038]
[1726945085369,0.76022839,63326.0,63325.0,0.02032038]
[1726945086480,0.76022839,63326.0,63325.0,0.000826]
[1726945086688,0.76022839,63326.0,63325.0,0.02046663]
[1726945093134,0.002652,63326.0,63325.0,0.17838163]
[1726945093344,0.002652,63326.0,63325.0,0.02046663]
[1726945093345,0.12115166,63326.0,63325.0,0.02046663]
[1726945093569,0.002652,63326.0,63325.0,0.02046663]
[1726945093980,0.24479022,63326.0,63325.0,0.02046663]
[1726945094180,0.36328988,63326.0,63325.0,0.02046663]
[1726945094382,0.24479022,63326.0,63325.0,0.02046663]
[1726945095413,0.33957741,63326.0,63325.0,0.02046663]
[1726945095839,0.33970106,63326.0,63325.0,0.02046663]
[1726945096064,0.24491388,63326.0,63325.0,0.02046663]
[1726945096233,0.24391388,63326.0,63325.0,0.02046663]
[1726945096454,0.33869906,63326.0,63325.0,0.02046663]
[1726945096631,0.24391388,63326.0,63325.0,0.02046663]
[1726945097049,0.33869867,63326.0,63325.0,0.02046663]
[1726945097461,0.33869867,63326.0,63325.0,0.02146663]
[1726945097830,0.33869577,63326.0,63325.0,0.02146663]
[1726945098042,0.33869577,63326.0,63325.0,0.02046663]
[1726945098309,0.24391388,63326.0,63325.0,0.02046663]
[1726945098509,0.24391388,63326.0,63325.0,0.02246663]
[1726945098510,0.3386934,63326.0,63325.0,0.02246663]
[1726945099146,0.3386934,63326.0,63325.0,0.02446663]
[1726945099380,0.24391388,63326.0,63325.0,0.02446663]
[1726945100072,0.33869295,63326.0,63325.0,0.02446663]
[1726945100287,0.24391388,63326.0,63325.0,0.02446663]
[1726945100714,0.49654909,63326.0,63325.0,0.02446663]
[1726945100926,0.5202452,63326.0,63325.0,0.02446663]
[1726945101366,0.40176974,63326.0,63325.0,0.02446663]
[1726945101800,0.5202452,63326.0,63325.0,0.02446663]
[1726945103620,0.24385674,63326.0,63325.0,0.02446663]
[1726945105520,0.24385674,63326.0,63325.0,0.27378163]
[1726945105752,0.07273234,63326.0,63325.0,0.27378163]
[1726945106247,0.001652,63326.0,63325.0,0.27378163]
[1726945106478,0.16981758,63326.0,63325.0,0.27378163]
[1726945107496,0.04903386,63326.0,63325.0,0.27378163]
[1726945107725,0.16981758,63326.0,63325.0,0.27378163]
[1726945107958,0.12243572,63326.0,63325.0,0.27378163]
[1726945108617,0.16981758,63326.0,63325.0,0.27378163]
[1726945109495,0.12243572,63326.0,63325.0,0.27378163]
[1726945112556,0.001652,63326.0,63325.0,0.27378163]
[1726945112739,0.001652,63326.0,63325.0,0.27178163]
[1726945112942,0.001652,63326.0,63325.0,0.26978163]
[1726945113154,0.001652,63326.0,63325.0,0.27378163]
[1726945113717,0.001652,63326.0,63325.0,0.27178163]
[1726945114140,0.001652,63326.0,63325.0,0.26978163]
[1726945114340,0.001652,63326.0,63325.0,0.29059044]
[1726945114845,0.001652,63326.0,63325.0,0.28859044]
[1726945115112,0.001652,63326.0,63325.0,0.29459044]
[1726945115570,0.001652,63326.0,63325.0,0.28859044]
[1726945115764,0.001652,63326.0,63325.0,0.28959044]
[1726945116245,0.001652,63326.0,63325.0,0.29859044]
[1726945119093,0.001652,63326.0,63325.0,0.30174856]
[1726945119706,0.001652,63326.0,63325.0,0.60391785]
[1726945119926,0.001652,63328.0,63327.0,0.24931]
[1726945120144,0.001652,63328.0,63327.0,0.26564224]
[1726945120364,0.001652,63328.0,63327.0,0.24931]
[1726945120564,0.001652,63328.0,63327.0,0.2805248]
[1726945121446,0.001652,63328.0,63327.0,0.2875248]
[1726945122134,0.001652,63328.0,63327.0,0.2945248]
[1726945126296,0.001652,63328.0,63327.0,0.2875248]
[1726945127194,0.001652,63328.0,63327.0,0.2995248]
[1726945127407,0.001652,63328.0,63327.0,0.2925248]
[1726945127646,0.001652,63328.0,63327.0,0.3045248]
[1726945127898,0.001652,63328.0,63327.0,0.2925248]
[1726945128340,0.001652,63328.0,63327.0,0.3045248]
[1726945128549,0.001652,63328.0,63327.0,0.2805248]
[1726945128762,0.001652,63328.0,63327.0,0.2935248]
[1726945128992,0.001652,63328.0,63327.0,0.3055248]
[1726945129425,0.001652,63328.0,63327.0,0.2935248]
[1726945129653,0.001652,63328.0,63327.0,0.3065248]
[1726945131783,0.001652,63328.0,63327.0,0.29899245]
[1726945132475,0.001652,63328.0,63327.0,0.20759245]
[1726945153574,0.001652,63328.0,63327.0,0.20368884]
[1726945157867,0.001652,63328.0,63327.0,0.19068884]
[1726945158307,0.001652,63328.0,63327.0,0.19968884]
[1726945158734,0.001652,63328.0,63327.0,0.18668884]
[1726945159259,0.001652,63328.0,63327.0,0.19603079]
[1726945160147,0.001652,63328.0,63327.0,0.20503079]
[1726945162587,0.001652,63328.0,63327.0,0.22400503]
[1726945167564,0.001652,63328.0,63327.0,0.26197859]
[1726945168420,0.001652,63328.0,63327.0,0.27825985]
[1726945169520,0.001652,63328.0,63327.0,0.26197859]
[1726945170570,0.001652,63328.0,63327.0,0.27826848]
[1726945171423,0.001652,63328.0,63327.0,0.26197859]
[1726945177906,0.001652,63328.0,63327.0,0.20503079]
[1726945178810,0.001652,63328.0,63327.0,0.26197205]
[1726945179055,0.001652,63328.0,63327.0,0.20503079]
[1726945179295,0.001652,63328.0,63327.0,0.26197362]
[1726945179525,0.001652,63328.0,63327.0,0.31891641]
[1726945184585,0.001652,63328.0,63327.0,0.26197362]
[1726945184819,0.001652,63328.0,63327.0,0.28095592]
[1726945185050,0.001652,63328.0,63327.0,0.31892052]
[1726945188022,0.001652,63328.0,63327.0,0.28095592]
[1726945188258,0.001652,63328.0,63327.0,0.31916994]
[1726945189303,0.001652,63328.0,63327.0,0.26222711]
[1726945190829,0.001652,63328.0,63327.0,0.26227056]
[1726945195650,0.001652,63328.0,63327.0,0.26240123]
[1726945198978,0.001652,63328.0,63327.0,0.20503079]
[1726945199202,0.001652,63328.0,63327.0,0.26230652]
[1726945202547,0.001652,63328.0,63327.0,0.26230613]
[1726945205934,0.001652,63328.0,63327.0,0.26203412]